[Event "IIe Tournoi de GMI du C'Chartres Echecs"]
[Site "Chartres, France"]
[Date "2021.05.19"]
[Round "6.1"]
[White "Dgebuadze, Alexandre"]
[Black "Loiseau, Quentin"]
[Result "0-1"]
[TimeControl "5400+30"]
[WhiteTitle "GM"]
[BlackTitle "IM"]
[WhiteElo "2490"]
[BlackElo "2455"]

1. c4 {[%clk 01:30:34]} {[%emt 00:00:25]} e6 {[%clk 01:30:33]} {[%emt
00:00:27]} 2. Nf3 {[%clk 01:30:53]} {[%emt 00:00:10]} d5 {[%clk 01:30:58]}
{[%emt 00:00:05]} 3. e3 {[%clk 01:31:19]} {[%emt 00:00:05]} Nf6 {[%clk
01:31:11]} {[%emt 00:00:17]} 4. Nc3 {[%emt 00:00:28]} c6 {[%emt 00:01:24]} 5.
Qc2 {[%clk 01:27:53]} {[%emt 00:00:40]} Bd6 6. b3 {[%emt 00:03:15]} O-O {[%clk
01:31:22]} {[%emt 00:00:28]} 7. Bb2 {[%clk 01:28:19]} {[%emt 00:00:05]} e5
{[%clk 01:31:32]} {[%emt 00:00:19]} 8. Be2 {[%clk 01:08:23]} {[%emt 00:20:26]}
e4 {[%clk 01:21:12]} {[%emt 00:10:50]} 9. Nd4 {[%clk 01:04:56]} {[%emt
00:03:57]} a6 {[%clk 01:20:46]} {[%emt 00:00:56]} 10. g4 {[%clk 00:57:07]}
{[%emt 00:08:19]} Nxg4 {[%clk 01:19:10]} {[%emt 00:02:06]} 11. Bxg4 {[%clk
00:49:51]} {[%emt 00:07:46]} Bxg4 {[%clk 01:19:11]} {[%emt 00:00:29]} 12. Rg1
{[%clk 00:50:12]} {[%emt 00:00:08]} Qh4 {[%clk 01:11:36]} {[%emt 00:08:04]} 13.
Nxe4 {[%clk 00:42:06]} {[%emt 00:08:37]} dxe4 {[%clk 01:04:18]} {[%emt
00:07:47]} 14. Qxe4 {[%clk 00:40:55]} {[%emt 00:01:41]} h5 {[%clk 01:04:05]}
{[%emt 00:00:43]} 15. Nf5 {[%clk 00:35:33]} {[%emt 00:05:52]} Qxh2 {[%clk
01:03:05]} {[%emt 00:01:31]} 16. Rxg4 {[%clk 00:27:15]} {[%emt 00:08:47]} hxg4
{[%clk 01:02:13]} {[%emt 00:01:22]} 17. O-O-O {[%clk 00:11:56]} {[%emt
00:15:49]} Nd7 {[%clk 00:50:53]} {[%emt 00:11:50]} 18. Qxg4 {[%clk 00:10:16]}
{[%emt 00:02:09]} g6 {[%clk 00:50:42]} {[%emt 00:00:42]} 19. Nxd6 {[%clk
00:06:34]} {[%emt 00:04:12]} Qxd6 {[%clk 00:50:17]} {[%emt 00:00:55]} 20. Rh1
{[%clk 00:06:31]} {[%emt 00:00:33]} f5 {[%clk 00:49:12]} {[%emt 00:01:36]} 21.
Qg5 {[%clk 00:03:45]} {[%emt 00:03:16]} Rf6 {[%clk 00:43:17]} {[%emt 00:06:25]}
22. Rh6 {[%clk 00:02:23]} {[%emt 00:01:51]} Raf8 {[%clk 00:42:52]} {[%emt
00:00:55]} 23. Qh4 {[%clk 00:02:20]} {[%emt 00:00:33]} Kf7 {[%clk 00:34:30]}
{[%emt 00:08:53]} 24. Rh7+ {[%clk 00:01:40]} {[%emt 00:01:10]} Ke8 {[%clk
00:34:38]} {[%emt 00:00:22]} 25. Bxf6 {[%clk 00:01:52]} {[%emt 00:00:18]} Qxf6
{[%clk 00:34:30]} {[%emt 00:00:39]} 26. Qf4 {[%clk 00:01:03]} {[%emt 00:01:19]}
Qa1+ {[%clk 08:14:25]} {[%emt 00:00:35]} 27. Kc2 {[%clk 00:01:27]} {[%emt
00:00:05]} Qxa2+ {[%clk 00:34:53]} {[%emt 00:00:03]} 28. Kd3 {[%clk 00:01:29]}
{[%emt 00:00:28]} Qxb3+ {[%clk 00:29:17]} {[%emt 00:06:07]} 29. Ke2 {[%clk
00:01:53]} {[%emt 00:00:05]} Rf7 {[%clk 00:27:57]} {[%emt 00:01:50]} 30. Rh8+
{[%clk 00:02:09]} {[%emt 00:00:14]} Nf8 {[%clk 00:25:32]} {[%emt 00:02:56]} 31.
Qb8+ {[%clk 00:01:18]} {[%emt 00:01:20]} Ke7 {[%clk 00:24:51]} {[%emt
00:01:11]} 32. Qc7+ {[%clk 00:00:38]} {[%emt 00:01:11]} Nd7 {[%clk 00:24:53]}
{[%emt 00:00:27]} 33. Rh4 {[%clk 00:00:34]} {[%emt 00:00:34]} f4 {[%clk
00:21:23]} {[%emt 00:04:00]} 34. Rxf4 {[%clk 00:00:58]} {[%emt 00:00:05]} Rxf4
{[%clk 00:21:46]} {[%emt 00:00:06]} 35. Qxf4 {[%clk 00:01:24]} {[%emt
00:00:03]} Qc2 {[%clk 00:21:29]} {[%emt 00:00:48]} 36. Qg5+ {[%clk 00:00:54]}
{[%emt 00:01:00]} Ke6 {[%clk 00:20:57]} {[%emt 00:01:02]} 37. Qg4+ {[%clk
00:00:35]} {[%emt 00:00:49]} Qf5 {[%clk 00:21:12]} {[%emt 00:00:15]} 38. Qd4
{[%clk 00:00:46]} {[%emt 00:00:20]} Ne5 {[%clk 00:16:52]} {[%emt 00:04:50]} 39.
f4 {[%clk 00:00:34]} {[%emt 00:00:42]} Qg4+ {[%clk 00:16:53]} {[%emt 00:00:29]}
40. Kf2 {[%clk 00:00:48]} {[%emt 00:00:15]} Qf3+ {[%clk 00:17:10]} {[%emt
00:00:12]} 41. Ke1 {[%clk 00:00:52]} {[%emt 00:00:26]} Qh1+ {[%clk 00:15:41]}
{[%emt 00:01:59]} 42. Kf2 {[%clk 00:00:55]} {[%emt 00:00:26]} Qh2+ {[%clk
00:13:52]} {[%emt 00:02:19]} 43. Kf1 {[%clk 00:01:17]} {[%emt 00:00:08]} Qg1+
{[%clk 00:06:01]} {[%emt 00:08:22]} 44. Kxg1 {[%clk 00:01:10]} {[%emt
00:00:36]} Nf3+ {[%clk 00:06:30]} 45. Kf2 {[%clk 00:01:11]} {[%emt 00:00:30]}
Nxd4 {[%clk 00:06:58]} {[%emt 00:00:03]} 46. exd4 {[%clk 00:01:26]} {[%emt
00:00:14]} b5 {[%clk 00:07:09]} {[%emt 00:00:19]} 47. d3 {[%clk 00:01:11]}
{[%emt 00:00:45]} b4 {[%clk 00:07:25]} {[%emt 00:00:14]} 48. Ke3 {[%clk
00:01:34]} {[%emt 00:00:06]} a5 {[%clk 00:06:20]} {[%emt 00:01:35]} 49. Kd2
{[%clk 00:00:50]} {[%emt 00:01:15]} a4 {[%clk 00:06:21]} {[%emt 00:00:30]} 50.
Kc2 {[%clk 00:00:53]} {[%emt 00:00:26]} Kf5 {[%clk 00:06:37]} {[%emt 00:00:14]}
51. d5 {[%clk 00:00:35]} {[%emt 00:00:48]} cxd5 {[%clk 00:07:02]} {[%emt
00:00:05]} 52. c5 {[%clk 00:00:40]} {[%emt 00:00:25]} d4 {[%clk 00:07:25]}
{[%emt 00:00:08]} 0-1

[Event "IIe Tournoi de GMI du C'Chartres Echecs"]
[Site "Chartres, France"]
[Date "2021.05.19"]
[Round "6.2"]
[White "Vlachos, Anatole"]
[Black "Stephan, Victor"]
[Result "1-0"]
[TimeControl "5400+30"]
[WhiteTitle "IM"]
[BlackTitle "IM"]
[WhiteElo "2438"]
[BlackElo "2430"]

1. e4 {[%clk 01:30:57]} {[%emt 00:00:01]} c5 {[%clk 01:30:51]} {[%emt
00:00:09]} 2. Nf3 {[%clk 01:31:24]} {[%emt 00:00:03]} d6 {[%clk 01:31:10]}
{[%emt 00:00:11]} 3. Bb5+ {[%clk 01:31:51]} {[%emt 00:00:04]} Bd7 {[%clk
01:30:31]} {[%emt 00:01:07]} 4. Bxd7+ {[%clk 01:32:16]} {[%emt 00:00:06]} Qxd7
{[%clk 01:30:45]} {[%emt 00:00:16]} 5. c4 {[%clk 01:32:43]} {[%emt 00:00:04]}
Nf6 {[%clk 01:30:59]} {[%emt 00:00:15]} 6. Nc3 {[%clk 01:33:11]} {[%emt
00:00:04]} g6 {[%clk 01:31:14]} {[%emt 00:00:14]} 7. d4 {[%clk 01:33:36]}
{[%emt 00:00:05]} cxd4 {[%clk 01:31:33]} {[%emt 00:00:11]} 8. Nxd4 {[%clk
01:34:04]} {[%emt 00:00:03]} Bg7 {[%clk 01:31:51]} {[%emt 00:00:12]} 9. f3
{[%clk 01:34:31]} {[%emt 00:00:03]} O-O {[%clk 01:32:04]} {[%emt 00:00:17]} 10.
Be3 {[%clk 01:34:59]} {[%emt 00:00:03]} Nc6 {[%clk 01:30:46]} {[%emt 00:01:47]}
11. O-O {[%clk 01:35:24]} {[%emt 00:00:06]} Rac8 {[%clk 01:26:10]} {[%emt
00:05:06]} 12. b3 {[%clk 01:35:52]} {[%emt 00:00:02]} Rfd8 {[%clk 01:22:02]}
{[%emt 00:04:37]} 13. Qd2 {[%clk 01:34:44]} {[%emt 00:01:39]} e6 {[%clk
01:21:57]} {[%emt 00:00:34]} 14. Rad1 {[%clk 01:34:50]} {[%emt 00:00:24]} d5
{[%clk 01:19:14]} {[%emt 00:03:14]} 15. Nxc6 {[%clk 01:34:44]} {[%emt
00:00:37]} bxc6 {[%clk 01:16:48]} {[%emt 00:02:55]} 16. e5 {[%clk 01:35:10]}
{[%emt 00:00:04]} Ne8 {[%clk 01:15:23]} {[%emt 00:01:54]} 17. f4 {[%clk
01:35:38]} {[%emt 00:00:02]} Bf8 {[%clk 01:05:28]} {[%emt 00:10:25]} 18. Qf2
{[%clk 01:32:47]} {[%emt 00:03:21]} Qb7 {[%clk 01:02:53]} {[%emt 00:03:05]} 19.
Na4 {[%clk 01:28:55]} {[%emt 00:04:23]} dxc4 {[%clk 00:55:38]} {[%emt
00:07:45]} 20. bxc4 {[%clk 01:29:17]} {[%emt 00:00:08]} Qa6 {[%clk 00:55:00]}
{[%emt 00:01:05]} 21. Qc2 {[%clk 01:28:39]} {[%emt 00:01:11]} Be7 {[%clk
00:50:22]} {[%emt 00:05:08]} 22. Nc5 {[%clk 01:15:03]} {[%emt 00:14:07]} Qb6
{[%clk 00:47:51]} {[%emt 00:03:00]} 23. Qf2 {[%clk 01:15:24]} {[%emt 00:00:09]}
Rxd1 {[%clk 00:47:10]} {[%emt 00:01:12]} 24. Rxd1 {[%clk 01:15:52]} {[%emt
00:00:02]} Qb4 {[%clk 00:45:46]} {[%emt 00:01:53]} 25. Ne4 {[%clk 01:07:36]}
{[%emt 00:08:45]} Qxc4 {[%clk 00:45:21]} {[%emt 00:00:56]} 26. Nd6 {[%clk
01:06:45]} {[%emt 00:01:20]} Rd8 {[%clk 00:40:19]} {[%emt 00:05:33]} 27. Nxc4
{[%clk 00:56:14]} {[%emt 00:11:01]} Rxd1+ {[%clk 00:40:42]} {[%emt 00:00:07]}
28. Qf1 {[%clk 00:56:42]} {[%emt 00:00:02]} Rxf1+ {[%clk 00:41:02]} {[%emt
00:00:10]} 29. Kxf1 {[%clk 00:57:10]} {[%emt 00:00:02]} c5 {[%clk 00:39:46]}
{[%emt 00:01:46]} 30. Na5 {[%clk 00:55:18]} {[%emt 00:02:22]} a6 {[%clk
00:39:59]} {[%emt 00:00:18]} 31. Nc6 {[%clk 00:54:18]} {[%emt 00:01:29]} Bf8
{[%clk 00:39:27]} {[%emt 00:01:02]} 32. Ke2 {[%clk 00:53:15]} {[%emt 00:01:33]}
Nc7 {[%clk 00:39:03]} {[%emt 00:00:54]} 33. Kd3 {[%clk 00:53:37]} {[%emt
00:00:08]} Nd5 {[%clk 00:35:49]} {[%emt 00:03:45]} 34. Bd2 {[%clk 00:54:04]}
{[%emt 00:00:02]} Kg7 {[%clk 00:34:07]} {[%emt 00:02:11]} 35. Nb8 {[%clk
00:51:18]} {[%emt 00:03:17]} a5 {[%clk 00:32:28]} {[%emt 00:02:09]} 36. Bxa5
{[%clk 00:51:34]} {[%emt 00:00:15]} Nxf4+ {[%clk 00:32:25]} {[%emt 00:00:32]}
37. Kc4 {[%clk 00:50:50]} {[%emt 00:01:13]} Nd5 {[%clk 00:27:56]} {[%emt
00:04:58]} 38. Bd8 {[%clk 00:43:22]} {[%emt 00:07:59]} Ne3+ {[%clk 00:27:06]}
{[%emt 00:01:20]} 39. Kd3 {[%clk 00:43:25]} {[%emt 00:00:27]} Nxg2 {[%clk
00:20:34]} {[%emt 00:07:02]} 40. a4 {[%clk 00:42:46]} {[%emt 00:01:09]} c4+
{[%clk 00:10:58]} {[%emt 00:10:06]} 41. Kxc4 {[%clk 00:43:04]} {[%emt
00:00:12]} Ne3+ {[%clk 00:11:05]} {[%emt 00:00:23]} 42. Kb5 {[%clk 00:43:22]}
{[%emt 00:00:11]} Nd5 {[%clk 00:11:33]} {[%emt 00:00:04]} 43. a5 {[%clk
00:43:21]} {[%emt 00:00:31]} Nc3+ {[%clk 00:09:28]} {[%emt 00:02:35]} 44. Kc4
{[%clk 00:43:35]} {[%emt 00:00:16]} Ne4 {[%clk 00:07:59]} {[%emt 00:01:59]} 45.
a6 {[%clk 00:42:45]} {[%emt 00:01:20]} Bc5 {[%clk 00:07:50]} {[%emt 00:00:39]}
46. Nd7 {[%clk 00:43:13]} {[%emt 00:00:02]} Ba7 {[%clk 00:06:11]} {[%emt
00:02:09]} 47. Bb6 {[%clk 00:43:28]} {[%emt 00:00:15]} 1-0

[Event "IIe Tournoi de GMI du C'Chartres Echecs"]
[Site "Chartres, France"]
[Date "2021.05.19"]
[Round "6.4"]
[White "Milliet, Sophie"]
[Black "Duboue, Peio"]
[Result "1-0"]
[TimeControl "5400+30"]
[WhiteTitle "IM"]
[BlackTitle "FM"]
[WhiteElo "2390"]
[BlackElo "2431"]

1. e4 {[%clk 01:27:46]} {[%emt 00:03:14]} e5 {[%clk 01:30:56]} {[%emt
00:00:05]} 2. Nf3 {[%clk 01:28:13]} {[%emt 00:00:03]} Nc6 {[%clk 01:31:22]}
{[%emt 00:00:04]} 3. Bb5 {[%clk 01:28:39]} {[%emt 00:00:04]} g6 {[%clk
01:31:49]} {[%emt 00:00:03]} 4. d4 {[%clk 01:28:48]} {[%emt 00:00:21]} exd4
{[%clk 01:32:15]} {[%emt 00:00:04]} 5. c3 {[%clk 01:29:12]} {[%emt 00:00:06]}
a6 {[%clk 01:32:41]} {[%emt 00:00:03]} 6. Bc4 {[%clk 01:28:58]} {[%emt
00:00:45]} Bg7 {[%clk 01:33:07]} {[%emt 00:00:05]} 7. cxd4 {[%clk 01:29:09]}
{[%emt 00:00:19]} b5 {[%clk 01:33:32]} {[%emt 00:00:04]} 8. Bb3 {[%clk
01:29:25]} {[%emt 00:00:14]} d6 {[%clk 01:33:03]} {[%emt 00:00:59]} 9. a4
{[%clk 01:28:54]} {[%emt 00:01:01]} b4 {[%clk 01:27:35]} {[%emt 00:05:58]} 10.
a5 {[%clk 01:26:26]} {[%emt 00:02:58]} Nge7 {[%clk 01:22:37]} {[%emt 00:05:27]}
11. d5 {[%clk 01:21:50]} {[%emt 00:05:06]} Nb8 {[%clk 01:22:30]} {[%emt
00:00:37]} 12. Ba4+ {[%clk 01:21:58]} {[%emt 00:00:23]} Nd7 {[%clk 01:21:37]}
{[%emt 00:01:22]} 13. Nd4 {[%clk 01:16:07]} {[%emt 00:06:20]} O-O {[%clk
01:14:53]} {[%emt 00:07:14]} 14. Bg5 {[%clk 01:14:08]} {[%emt 00:02:29]} Ne5
{[%clk 01:14:24]} {[%emt 00:00:59]} 15. O-O {[%clk 00:50:51]} {[%emt 00:23:46]}
h6 {[%clk 01:14:01]} {[%emt 00:00:53]} 16. Bh4 {[%clk 00:50:36]} {[%emt
00:00:46]} g5 {[%clk 01:08:09]} {[%emt 00:06:23]} 17. Bg3 {[%clk 00:51:01]}
{[%emt 00:00:04]} c5 {[%clk 01:07:30]} {[%emt 00:01:08]} 18. dxc6 {[%clk
00:50:25]} {[%emt 00:01:07]} Qxa5 {[%clk 01:07:39]} {[%emt 00:00:21]} 19. Nd2
{[%clk 00:44:20]} {[%emt 00:06:35]} Qb6 {[%clk 01:07:09]} {[%emt 00:01:00]} 20.
N2b3 {[%clk 00:40:08]} {[%emt 00:04:43]} a5 {[%clk 01:04:55]} {[%emt 00:02:44]}
21. Qc2 {[%clk 00:37:38]} {[%emt 00:03:00]} Ba6 {[%clk 01:02:27]} {[%emt
00:02:58]} 22. Rfd1 {[%clk 00:35:54]} {[%emt 00:02:14]} Rac8 {[%clk 01:01:30]}
{[%emt 00:01:27]} 23. Bxe5 {[%clk 00:31:39]} {[%emt 00:04:45]} Bxe5 {[%clk
00:58:54]} {[%emt 00:03:06]} 24. g3 {[%clk 00:29:07]} {[%emt 00:03:03]} Bb7
{[%clk 00:55:52]} {[%emt 00:03:31]} 25. Rac1 {[%clk 00:28:27]} {[%emt
00:01:11]} Ba8 {[%clk 00:53:15]} {[%emt 00:03:07]} 26. Qe2 {[%clk 00:24:13]}
{[%emt 00:04:44]} Rfd8 {[%clk 00:25:54]} {[%emt 00:27:51]} 27. Qh5 {[%clk
00:24:02]} {[%emt 00:00:40]} Bg7 {[%clk 00:25:19]} {[%emt 00:01:05]} 28. h4
{[%clk 00:23:22]} {[%emt 00:01:11]} gxh4 {[%clk 00:25:08]} {[%emt 00:00:40]} 29.
Qxh4 {[%clk 00:23:08]} {[%emt 00:00:43]} Ng6 {[%clk 00:22:21]} {[%emt
00:03:17]} 30. Qh5 {[%clk 00:23:28]} {[%emt 00:00:09]} Re8 {[%clk 00:22:38]}
{[%emt 00:00:14]} 31. Nf5 {[%clk 00:20:14]} {[%emt 00:03:44]} Re6 {[%clk
00:19:47]} {[%emt 00:03:21]} 32. Nxg7 {[%clk 00:19:00]} {[%emt 00:01:44]} Kxg7
{[%clk 00:20:05]} {[%emt 00:00:12]} 33. Nd4 {[%clk 00:19:27]} {[%emt 00:00:03]}
Qd8 {[%clk 00:18:28]} {[%emt 00:02:06]} 34. Nf5+ {[%clk 00:11:25]} {[%emt
00:08:33]} Kf6 {[%clk 00:18:53]} {[%emt 00:00:05]} 35. Nxh6 {[%clk 00:11:34]}
{[%emt 00:00:20]} Rc7 {[%clk 00:18:16]} {[%emt 00:01:08]} 36. Bb3 {[%clk
00:09:52]} {[%emt 00:02:13]} Re5 {[%clk 00:18:39]} {[%emt 00:00:06]} 37. Ng4+
{[%clk 00:10:11]} {[%emt 00:00:11]} Ke7 {[%clk 00:19:00]} {[%emt 00:00:09]} 38.
Nxe5 {[%clk 00:10:32]} {[%emt 00:00:09]} Nxe5 {[%clk 00:19:25]} {[%emt
00:00:05]} 39. f4 {[%clk 00:08:32]} {[%emt 00:02:30]} Ng6 {[%clk 00:18:52]}
{[%emt 00:01:03]} 40. Qg5+ {[%clk 00:07:49]} {[%emt 00:01:13]} Ke8 {[%clk
00:19:03]} {[%emt 00:00:19]} 41. Qxd8+ {[%clk 00:08:08]} {[%emt 00:00:12]} Kxd8
{[%clk 00:19:28]} {[%emt 00:00:05]} 42. Rxd6+ {[%clk 00:08:31]} {[%emt
00:00:07]} 1-0

[Event "IIe Tournoi de GMI du C'Chartres Echecs"]
[Site "Chartres, France"]
[Date "2021.05.19"]
[Round "6.5"]
[White "Shirazi, Kamran"]
[Black "Flear, Glenn"]
[Result "1-0"]
[TimeControl "5400+30"]
[WhiteTitle "IM"]
[BlackTitle "GM"]
[WhiteElo "2349"]
[BlackElo "2431"]

1. e3 {[%clk 01:30:26]} {[%emt 00:00:34]} d5 {[%clk 01:30:07]} {[%emt
00:00:53]} 2. c4 {[%clk 01:29:50]} {[%emt 00:01:06]} e6 {[%clk 01:26:27]}
{[%emt 00:04:10]} 3. b3 {[%clk 01:28:12]} {[%emt 00:02:09]} Nf6 {[%clk
01:25:49]} {[%emt 00:01:07]} 4. Nf3 {[%clk 01:28:10]} {[%emt 00:00:32]} b6
{[%clk 01:25:16]} {[%emt 00:01:03]} 5. Bb2 {[%clk 01:28:21]} {[%emt 00:00:20]}
Bb7 {[%clk 01:25:30]} {[%emt 00:00:15]} 6. g3 {[%clk 01:26:12]} {[%emt
00:02:39]} Nbd7 {[%clk 01:22:50]} {[%emt 00:03:10]} 7. Bg2 {[%clk 01:26:18]}
{[%emt 00:00:24]} Bd6 {[%clk 01:15:25]} {[%emt 00:07:55]} 8. cxd5 {[%clk
01:26:26]} {[%emt 00:00:23]} exd5 {[%clk 01:13:44]} {[%emt 00:02:11]} 9. O-O
{[%clk 01:26:14]} {[%emt 00:00:42]} O-O {[%clk 01:13:06]} {[%emt 00:01:09]} 10.
Nc3 {[%clk 01:25:27]} {[%emt 00:01:17]} a6 {[%clk 01:12:42]} {[%emt 00:00:54]}
11. Rc1 {[%clk 01:24:47]} {[%emt 00:01:10]} Qe7 {[%clk 01:02:57]} {[%emt
00:10:14]} 12. Ne2 {[%clk 01:23:22]} {[%emt 00:01:55]} c5 {[%clk 00:46:36]}
{[%emt 00:16:51]} 13. d4 {[%clk 01:23:07]} {[%emt 00:00:45]} Rfd8 {[%clk
00:41:52]} {[%emt 00:05:13]} 14. Nh4 {[%clk 01:12:17]} {[%emt 00:11:20]} g6
{[%clk 00:40:43]} {[%emt 00:01:39]} 15. Nf4 {[%clk 01:09:27]} {[%emt 00:03:21]}
cxd4 {[%clk 00:32:09]} {[%emt 00:09:04]} 16. Bxd4 {[%clk 01:09:26]} {[%emt
00:00:30]} Be5 {[%clk 00:31:29]} {[%emt 00:01:11]} 17. Nf3 {[%clk 00:51:17]}
{[%emt 00:18:39]} Bxd4 {[%clk 00:31:51]} {[%emt 00:00:08]} 18. Qxd4 {[%clk
00:51:40]} {[%emt 00:00:07]} Rac8 {[%clk 00:31:53]} {[%emt 00:00:27]} 19. Bh3
{[%clk 00:51:04]} {[%emt 00:01:07]} Rxc1 {[%clk 00:18:52]} {[%emt 00:13:32]} 20.
Rxc1 {[%clk 00:51:29]} {[%emt 00:00:05]} Qd6 {[%clk 00:19:10]} {[%emt
00:00:11]} 21. b4 {[%clk 00:39:43]} {[%emt 00:12:16]} Re8 {[%clk 00:12:46]}
{[%emt 00:06:54]} 22. a3 {[%clk 00:38:32]} {[%emt 00:01:41]} a5 {[%clk
00:10:19]} {[%emt 00:02:57]} 23. Nd2 {[%clk 00:32:58]} {[%emt 00:06:03]} axb4
{[%clk 00:10:12]} {[%emt 00:00:38]} 24. axb4 {[%clk 00:30:23]} {[%emt
00:03:05]} Ne4 {[%clk 00:07:43]} {[%emt 00:02:59]} 25. Bg2 {[%clk 00:29:23]}
{[%emt 00:01:30]} Ndf6 {[%clk 00:07:31]} {[%emt 00:00:43]} 26. Nxe4 {[%clk
00:29:14]} {[%emt 00:00:39]} Nxe4 {[%clk 00:07:55]} {[%emt 00:00:06]} 27. h4
{[%clk 00:24:42]} {[%emt 00:05:01]} h5 {[%clk 00:07:45]} {[%emt 00:00:39]} 28.
Rd1 {[%clk 00:24:50]} {[%emt 00:00:23]} Qf6 {[%clk 00:03:23]} {[%emt 00:04:53]}
29. Qxf6 {[%clk 00:14:09]} {[%emt 00:11:10]} Nxf6 {[%clk 00:03:48]} {[%emt
00:00:05]} 30. Nxd5 {[%clk 00:13:54]} {[%emt 00:00:45]} Bxd5 {[%clk 00:03:38]}
{[%emt 00:00:40]} 31. Bxd5 {[%clk 00:14:20]} {[%emt 00:00:04]} Nxd5 {[%clk
00:02:29]} {[%emt 00:01:40]} 32. Rxd5 {[%clk 00:14:47]} {[%emt 00:00:03]} Re4
{[%clk 00:02:04]} {[%emt 00:00:55]} 33. Rd4 {[%clk 00:14:20]} {[%emt 00:00:56]}
Re6 {[%clk 00:02:27]} {[%emt 00:00:06]} 34. Rd8+ {[%clk 00:11:06]} {[%emt
00:03:44]} Kg7 {[%clk 00:02:51]} {[%emt 00:00:06]} 35. Rb8 {[%clk 00:11:32]}
{[%emt 00:00:04]} Kf6 {[%clk 00:03:08]} {[%emt 00:00:12]} 36. Rb7 {[%clk
00:11:57]} {[%emt 00:00:05]} Rd6 {[%clk 00:02:56]} {[%emt 00:00:43]} 37. Kf1
{[%clk 00:11:34]} {[%emt 00:00:53]} Ke6 {[%clk 00:03:19]} {[%emt 00:00:06]} 38.
Ke2 {[%clk 00:11:59]} {[%emt 00:00:06]} f5 {[%clk 00:03:31]} {[%emt 00:00:19]}
39. b5 {[%clk 00:11:55]} {[%emt 00:00:33]} Kd5 {[%clk 00:02:52]} {[%emt
00:01:09]} 40. Rc7 {[%clk 00:11:59]} {[%emt 00:00:26]} Ke6 {[%clk 00:01:54]}
{[%emt 00:01:28]} 41. Kf3 {[%clk 00:04:44]} {[%emt 00:07:46]} Ke5 {[%clk
00:02:02]} {[%emt 00:00:21]} 42. Re7+ {[%clk 00:04:41]} {[%emt 00:00:33]} Kf6
{[%clk 00:02:02]} {[%emt 00:00:30]} 43. Rb7 {[%clk 00:04:59]} {[%emt 00:00:12]}
Ke5 {[%clk 00:02:27]} {[%emt 00:00:04]} 44. Rb8 {[%clk 00:05:21]} {[%emt
00:00:08]} Kd5 {[%clk 00:02:03]} {[%emt 00:00:54]} 45. Rc8 {[%clk 00:04:31]}
{[%emt 00:01:20]} Ke5 {[%clk 00:02:10]} {[%emt 00:00:22]} 46. Re8+ {[%clk
00:04:07]} {[%emt 00:00:54]} Kf6 {[%clk 00:02:17]} {[%emt 00:00:22]} 47. e4
{[%clk 00:04:29]} {[%emt 00:00:08]} Rd3+ {[%clk 00:01:10]} {[%emt 00:01:37]} 48.
Kf4 {[%clk 00:04:57]} {[%emt 00:00:02]} fxe4 {[%clk 00:01:19]} {[%emt
00:00:21]} 49. Rb8 {[%clk 00:05:00]} {[%emt 00:00:27]} Rd6 {[%clk 00:00:53]}
{[%emt 00:00:57]} 50. Kxe4 {[%clk 00:04:22]} {[%emt 00:01:08]} Ke6 {[%clk
00:01:09]} {[%emt 00:00:14]} 51. Rb7 {[%clk 00:04:37]} {[%emt 00:00:15]} Kf6
{[%clk 00:01:33]} {[%emt 00:00:06]} 52. f3 {[%clk 00:04:26]} {[%emt 00:00:40]}
g5 {[%clk 00:00:59]} {[%emt 00:01:04]} 53. hxg5+ {[%clk 00:04:06]} {[%emt
00:00:50]} Kxg5 {[%clk 00:01:24]} {[%emt 00:00:05]} 54. Rg7+ {[%clk 00:04:27]}
{[%emt 00:00:09]} Kf6 {[%clk 00:01:47]} {[%emt 00:00:07]} 55. Rc7 {[%clk
00:04:49]} {[%emt 00:00:08]} Re6+ {[%clk 00:00:49]} {[%emt 00:01:29]} 56. Kf4
{[%clk 00:04:52]} {[%emt 00:00:26]} Rd6 {[%clk 00:01:15]} {[%emt 00:00:05]} 57.
Rc6 {[%clk 00:04:37]} {[%emt 00:00:45]} Rxc6 {[%clk 00:01:31]} {[%emt
00:00:14]} 58. bxc6 {[%clk 00:05:01]} {[%emt 00:00:05]} Ke6 {[%clk 00:01:39]}
{[%emt 00:00:23]} 59. g4 {[%clk 00:05:08]} {[%emt 00:00:23]} b5 {[%clk
00:00:37]} {[%emt 00:01:32]} 60. g5 {[%clk 00:05:15]} {[%emt 00:00:22]} b4
{[%clk 00:00:56]} {[%emt 00:00:12]} 61. g6 {[%clk 00:05:34]} {[%emt 00:00:10]}
b3 {[%clk 00:01:10]} {[%emt 00:00:16]} 62. c7 {[%clk 00:05:57]} {[%emt
00:00:07]} 1-0